bitfinex-derivatives/quotes_ETHF0:USTF0_20250330
["timestamp","ask_amount","ask_price","bid_price","bid_amount"]
[1743353816843,1.11669,1791.5,1791.4,3.2078]
[1743353817034,1.11669,1791.5,1791.0,0.5584]
[1743353817035,1.11717,1790.8,1790.4,59.1973]
[1743353817239,3.2078,1790.6,1790.4,5.388]
[1743353817440,3.2078,1790.8,1790.5,3.9859]
[1743353817746,3.2078,1790.6,1790.5,3.9859]
[1743353818044,3.2078,1790.6,1790.5,9.3669]
[1743353818245,0.00838128,1790.7,1790.5,3.9859]
[1743353818542,0.00838128,1790.7,1790.5,5.10317]
[1743353818739,0.00838128,1790.7,1790.6,8.49435374]
[1743353819142,0.00838128,1790.7,1790.6,10.99435374]
[1743353819340,3.2078,1790.8,1790.7,1.11719]
[1743353819542,3.2078,1791.5,1790.7,56.0177]
[1743353819743,3.2078,1791.3,1790.8,7.3339]
[1743353819937,1.11697,1791.1,1790.9,4.3787]
[1743353820145,1.117,1791.0,1790.9,4.3787]
[1743353820350,1.11731,1790.5,1790.4,0.00838128]
[1743353820549,3.2078,1790.8,1790.4,0.00838128]
[1743353820746,1.11731,1790.5,1790.4,0.00838128]
[1743353821048,3.2078,1790.6,1790.0,4.1261]
[1743353821243,1.11756,1790.2,1790.1,4.3617]
[1743353821447,4.32529,1790.3,1790.1,4.3617]
[1743353821642,1.1175,1790.2,1790.1,4.3617]
[1743353822044,3.2078,1790.3,1790.1,4.3617]
[1743353822045,3.2078,1790.5,1790.1,4.3617]
[1743353822245,1.11747,1790.3,1790.1,4.3617]
[1743353822450,3.2078,1790.5,1790.1,4.3617]
[1743353822651,1.11748,1790.3,1790.1,4.3617]
[1743353822853,1.1175,1790.2,1790.1,4.3617]
[1743353823049,4.3253,1790.2,1790.1,4.3617]
[1743353823244,3.2078,1790.2,1790.1,4.3617]
[1743353823442,3.2078,1790.4,1790.1,4.3617]
[1743353823848,3.2078,1790.6,1790.1,9.7447]
[1743353824047,1.11734,1790.5,1790.2,4.0906]
[1743353824250,3.2078,1790.6,1790.2,5.20807]
[1743353824552,3.2078,1790.6,1790.2,4.0906]
[1743353824753,4.32509,1790.6,1790.2,5.20809]
[1743353825251,3.2078,1790.6,1790.2,4.0906]
[1743353825452,3.2078,1790.4,1790.2,4.0906]
[1743353826056,3.2078,1790.4,1790.2,9.4476]
[1743353826354,4.32521,1790.4,1790.2,4.0906]
[1743353826543,4.0951,1790.9,1790.2,4.0906]
[1743353826749,3.2078,1790.4,1790.3,1.11744]
[1743353827352,3.2078,1790.6,1790.4,1.11732]
[1743353827559,3.2078,1790.6,1790.5,4.1274]
[1743353827759,3.2078,1790.8,1790.5,5.24471]
[1743353828057,1.11722,1790.7,1790.5,4.1274]
[1743353828256,3.2078,1790.8,1790.5,4.1274]
[1743353828456,3.2078,1790.8,1790.6,1.11723]
[1743353828655,3.2078,1790.8,1790.7,4.1274]
[1743353828857,3.2078,1790.8,1790.7,5.24459]
[1743353829053,1.12231412,1791.1,1790.7,5.24459]
[1743353829054,0.00533412,1791.1,1791.0,1.117]
[1743353829252,0.00533412,1791.1,1790.9,5.343]
[1743353829646,4.3245,1791.5,1791.0,64.96732985]
[1743353829849,3.2078,1791.5,1791.0,68.17512985]
[1743353830046,3.2078,1792.0,1791.2,3.2078]
[1743353830354,3.2078,1792.0,1791.4,3.2078]
[1743353830553,1.11667,1791.6,1791.4,3.2078]
[1743353830859,1.11667,1791.6,1791.5,0.00838128]
[1743353831155,1.11663,1791.6,1791.5,0.00838128]
[1743353831357,0.00838128,1791.9,1791.5,0.00838128]
[1743353831552,1.11663,1791.6,1791.5,0.00838128]
[1743353831760,4.32443,1791.6,1791.5,0.00838128]
[1743353832964,4.32443,1791.6,1790.6,4.7209]
[1743353832965,1.117,1791.0,1790.9,3.2078]
[1743353833450,1.11688,1791.2,1790.9,3.2078]
[1743353833652,1.11694,1791.1,1791.0,4.2236]
[1743353833858,4.32474,1791.1,1791.0,4.2236]
[1743353834054,1.11694,1791.1,1791.0,4.2236]
[1743353834355,1.1169,1791.2,1791.0,4.2236]
[1743353834559,1.11684,1791.3,1791.0,5.34056]
[1743353834855,1.11679,1791.4,1791.1,1.11694]
[1743353835058,1.11673,1791.5,1791.2,4.2236]
[1743353835248,1.11668,1791.6,1791.3,1.1168]
[1743353835452,3.2078,1791.7,1791.4,4.2236]
[1743353835649,1.11653,1791.8,1791.5,1.11664]
[1743353835845,1.11653,1791.8,1791.6,4.2236]
[1743353836051,1.11653,1791.8,1791.6,5.34023]
[1743353836250,3.21618128,1791.9,1791.6,5.34023]
[1743353836550,3.21618128,1791.9,1791.7,4.3977]
[1743353836849,0.00838128,1791.9,1791.7,5.51423]
[1743353837056,0.00838128,1791.9,1791.8,1.1165]
[1743353837250,9.7276,1792.3,1791.7,10.1055]
[1743353837251,3.2078,1792.3,1791.7,10.1055]
[1743353837454,1.11628,1792.2,1792.0,1.11637]
[1743353837659,7.6387,1792.5,1791.5,7.5324]
[1743353837850,1.11677,1791.4,1791.1,4.88311]
[1743353838052,1.11681,1791.4,1791.2,4.3977]
[1743353838363,0.00838128,1791.5,1791.4,1.11675]
[1743353838553,4.164,1792.1,1791.7,1.11652]
[1743353838554,1.11632,1792.1,1791.7,1.11652]
[1743353838752,3.2078,1792.2,1791.8,4.3977]
[1743353838946,1.11643,1792.0,1791.8,4.3977]
[1743353839445,1.11644,1791.9,1791.8,4.3977]
[1743353840353,4.2258,1792.1,1791.8,4.3977]
[1743353840759,1.11638,1792.0,1791.8,4.3977]
[1743353840959,1.11644,1791.9,1791.8,4.3977]
[1743353841159,1.11634,1792.1,1791.8,5.51417]
[1743353841364,3.2078,1792.4,1791.8,9.6737]
[1743353841561,3.2078,1792.4,1791.8,5.51418]
[1743353841757,1.11636,1792.1,1791.9,5.272]
[1743353841953,1.1163,1792.2,1792.0,4.0806]
[1743353842155,1.11632,1792.1,1792.0,4.0806]
[1743353842659,1.11623,1792.3,1792.0,5.19696]
[1743353842857,1.11597,1792.7,1792.1,3.7662]
[1743353843054,1.11619,1792.3,1792.2,4.4023]
[1743353843559,5.52839,1792.3,1792.2,4.4023]
[1743353843755,1.11617,1792.4,1792.2,4.4023]
[1743353843960,7.62,1792.6,1792.2,4.4023]
[1743353844162,1.11619,1792.3,1792.2,4.4023]
[1743353844654,3.2078,1792.3,1792.0,5.254]
[1743353844860,3.2078,1792.5,1792.0,10.77266]
[1743353845063,1.11613,1792.4,1792.0,21.11147628]
[1743353845354,3.2078,1792.5,1792.0,19.99512628]
[1743353845561,5.52824,1792.6,1792.2,1.11622]
[1743353845759,3.2078,1792.9,1792.3,4.4186]
[1743353845967,1.11596,1792.7,1792.4,6.36507]
[1743353846161,1.11589,1792.8,1792.5,4.4186]
[1743353846357,8.66095,1792.9,1792.6,1.116]
[1743353846552,4.1358,1793.2,1792.7,4.4186]
[1743353846766,1.1158,1793.0,1792.7,4.4186]
[1743353847159,1.11582,1792.9,1792.7,5.53452]
[1743353847360,1.11579,1793.0,1792.7,4.4186]
[1743353847558,7.5451,1793.1,1792.7,5.5345]
[1743353847865,1.11588,1792.8,1792.7,4.4186]
[1743353848258,4.3373,1793.0,1792.7,5.53451]
[1743353848259,1.11578,1793.0,1792.7,5.53451]
[1743353848566,1.11586,1792.9,1792.7,4.4186]
[1743353848763,1.11588,1792.9,1792.7,4.4186]
[1743353849068,3.2078,1793.1,1792.7,4.4186]
[1743353849362,1.11579,1793.0,1792.7,4.4186]
[1743353849554,4.0578,1793.0,1792.7,4.4186]
[1743353849754,5.1736,1793.0,1792.7,4.4186]
[1743353849961,4.32353,1793.1,1792.7,4.4186]
[1743353850157,4.32353,1793.1,1792.8,1.11588]
[1743353850364,4.32353,1793.1,1792.9,4.3046]
[1743353850665,3.2078,1793.1,1792.6,54.78918128]
[1743353850872,3.2078,1792.9,1792.7,4.3046]
[1743353851058,3.2078,1793.1,1792.7,4.3046]
[1743353851264,3.2078,1793.1,1792.7,11.48247017]
[1743353851469,3.2078,1793.1,1792.7,5.42048]
[1743353851670,1.1158,1793.0,1792.7,5.42048]
[1743353851970,4.0877,1793.0,1792.7,4.3046]
[1743353852170,4.0877,1793.0,1792.9,1.11582]
[1743353852369,3.2078,1793.3,1792.8,10.51418461]
[1743353852574,3.2078,1793.3,1792.9,4.2404]
[1743353852575,7.2955,1793.3,1792.9,4.2404]
[1743353852767,8.41112,1793.3,1792.9,4.2404]
[1743353852970,8.41112,1793.3,1793.1,1.11569]
[1743353853168,3.2078,1793.3,1793.2,1.11563]
[1743353853377,5.20319,1793.5,1793.3,1.11556]
[1743353853575,5.20319,1793.5,1793.3,1.11555]
[1743353854167,7.2955,1793.5,1793.1,5.209]
[1743353854366,1.11562,1793.3,1793.1,9.2313]
[1743353854574,1.11557,1793.3,1793.1,10.34695]
[1743353854773,7.2955,1793.5,1793.1,9.2313]
[1743353854970,1.1156,1793.3,1793.1,10.90535]
[1743353855277,1.11576,1793.0,1792.9,0.5584]
[1743353855575,4.0835,1793.2,1792.7,4.5807]
[1743353855768,5.19917,1793.2,1793.0,1.11575]
[1743353856168,2.78872,1793.5,1793.2,1.11563]
[1743353856169,1.11553,1793.4,1793.2,1.11563]
[1743353856366,4.0835,1793.4,1793.1,4.0223]
[1743353856565,1.11558,1793.3,1793.1,5.69635]
[1743353856771,4.0835,1793.4,1793.2,4.0223]
[1743353856973,1.11557,1793.3,1793.2,4.0223]
[1743353857679,1.11565,1793.2,1793.0,1.67411]
[1743353857874,1.11565,1793.2,1793.1,4.0406]
[1743353858468,4.32339,1793.3,1793.1,5.15629]
[1743353858673,3.2078,1794.1,1793.6,1.11537]
[1743353858976,3.2078,1794.1,1793.5,5.19]
[1743353859274,4.32288,1794.1,1793.8,1.11523]
[1743353859485,1.11513,1794.0,1793.9,4.0406]
[1743353859682,8.23216164,1794.2,1793.9,12.4334]
[1743353859979,8.23216164,1794.2,1794.1,4.32287]
[1743353860379,8.23216164,1794.2,1794.1,11.18037]
[1743353860774,8.23216164,1794.2,1794.1,18.51831593]
[1743353860977,10.59205993,1794.3,1794.2,1.11501]
[1743353861280,12.70651008,1794.8,1794.2,52.65901]
[1743353861575,12.70651008,1794.8,1794.7,4.3225]
[1743353861773,12.70651008,1794.8,1794.7,9.5145]
[1743353862275,18.09557487,1794.8,1794.5,3.2078]
[1743353862484,10.67239479,1794.7,1794.6,3.2078]
[1743353862773,10.67239479,1794.7,1794.3,3.2078]
[1743353862980,1.11485,1794.5,1794.2,51.544]
[1743353863182,4.1686,1794.4,1794.3,3.2078]
[1743353863376,5.38906479,1794.4,1794.1,8.9524]
[1743353863876,9.5611,1795.0,1794.4,1.11489]
[1743353863877,1.11463,1794.9,1794.4,1.11489]
[1743353864075,3.2078,1795.7,1794.8,3.2078]
[1743353864277,4.4156,1795.2,1794.9,8.4478]
[1743353864578,4.4156,1795.2,1795.1,0.00835771]
[1743353864774,4.3791,1795.7,1795.1,0.00835771]
[1743353864970,5.38906479,1795.6,1795.5,4.322]
[1743353865177,1.11405,1795.8,1795.4,6.36222]
[1743353865375,6.50311479,1795.8,1795.4,1.11426]
[1743353865577,5.38906479,1795.8,1795.7,1.11406]
[1743353865771,1.11389,1796.1,1795.7,1.11406]
[1743353865972,5.38906479,1796.0,1795.5,3.2078]
[1743353866170,1.11407,1795.8,1795.3,54.7278]
[1743353866375,13.85086479,1796.1,1795.3,54.7278]
[1743353866376,1.11398,1795.9,1795.5,4.32198]
[1743353866779,6.50310479,1795.8,1795.5,3.2078]
[1743353866973,5.38906479,1795.7,1795.5,3.2078]
[1743353867382,5.38906479,1795.7,1795.5,4.322]
[1743353867583,3.2078,1796.1,1795.5,3.2078]
[1743353867775,5.38906479,1796.1,1795.7,3.2078]
[1743353867974,5.38906479,1796.0,1795.5,3.2078]
[1743353868179,1.114,1795.9,1795.5,3.2078]
[1743353868385,3.2078,1796.1,1795.7,1.11406]
[1743353868682,6.50300479,1796.0,1795.6,4.32193]
[1743353868879,5.38906479,1796.1,1795.6,3.2078]
[1743353869079,1.11392,1796.0,1795.6,4.32192]
[1743353869279,5.38906479,1796.0,1795.6,4.32192]
[1743353869477,3.2078,1796.1,1795.6,1.1141]
[1743353869478,5.38906479,1795.9,1795.6,1.1141]
[1743353869682,1.11398,1795.9,1795.5,1.11415]
[1743353869875,1.11398,1795.9,1795.4,12.8838]
[1743353869876,5.38906479,1795.8,1795.4,7.6218]
[1743353870187,3.2078,1795.9,1795.3,55.84209]
[1743353870482,1.11417,1795.6,1795.3,55.84212]
[1743353870684,5.38906479,1795.8,1795.1,0.56595771]
[1743353870882,8.4708,1795.7,1795.1,0.00835771]
[1743353871085,1.11424,1795.5,1795.1,1.12276771]
[1743353871384,1.11424,1795.5,1795.1,1.68036771]
[1743353871586,6.50334479,1795.4,1795.1,6.08208771]
[1743353871788,5.38906479,1795.6,1795.1,6.08210771]
[1743353872082,1.11436,1795.3,1795.1,0.00835771]
[1743353872284,5.38906479,1795.5,1795.1,0.00835771]
[1743353872485,5.38906479,1795.4,1795.1,0.00835771]
[1743353872687,1.1143,1795.4,1795.2,1.11439]
[1743353872978,1.11416,1795.6,1795.3,1.11427]
[1743353873183,4.4443,1795.7,1795.2,3.2078]
[1743353873184,5.38906479,1795.5,1795.2,3.2078]
[1743353873388,1.11433,1795.3,1795.2,3.2078]
[1743353873586,1.11439,1795.2,1795.1,0.00835771]
[1743353874090,6.50345479,1795.2,1795.1,0.00835771]
[1743353874485,6.50345479,1795.2,1794.7,1.11467]
[1743353874486,5.38906479,1795.2,1794.7,1.11467]
[1743353874787,4.1056,1795.4,1794.5,0.5576]
[1743353874788,5.38906479,1795.1,1795.0,1.11451]
[1743353874987,5.38906479,1795.3,1795.2,1.11439]
[1743353875687,0.00827909,1795.4,1795.2,3.2078]
[1743353875897,5.39734388,1795.4,1795.3,5.37553]
[1743353876391,5.39734388,1795.4,1795.3,4.2612]
[1743353876589,6.51163388,1795.4,1795.2,3.7654]
[1743353876791,1.11433,1795.3,1795.2,3.7654]
[1743353876987,10.58349479,1795.3,1795.2,3.2078]
[1743353877291,1.11439,1795.2,1795.1,0.00835771]
[1743353877487,10.58355479,1795.2,1795.1,0.00835771]
[1743353877688,9.46916479,1795.2,1795.1,0.00835771]
[1743353877991,10.58355479,1795.2,1795.1,0.00835771]
[1743353878189,5.38906479,1795.2,1795.1,1.12278771]
[1743353878394,5.19443,1795.3,1795.1,0.00835771]
[1743353878595,9.46916479,1795.3,1795.2,3.2078]
[1743353878792,9.46916479,1795.3,1795.2,4.32219]
[1743353878987,4.0801,1795.3,1795.2,7.5287]
[1743353879298,4.0801,1795.3,1795.2,4.3209]
[1743353879591,1e-08,1795.4,1795.3,1.11433]
[1743353880689,1e-08,1795.4,1795.2,13.87304]
[1743353880896,5.38906479,1795.3,1795.2,7.5287]
[1743353881196,9.41846479,1795.3,1795.1,4.33058771]
[1743353881390,5.38906479,1795.2,1795.1,4.32925771]
[1743353881691,10.74595479,1795.2,1795.1,3.21615771]
[1743353881890,1e-08,1795.4,1795.1,2.50835771]
[1743353882091,5.38906479,1795.3,1795.1,8.68588771]
[1743353882293,5.38906479,1795.3,1795.1,8.68587771]
[1743353882495,5.38906479,1795.3,1795.1,8.68585771]
[1743353882694,9.63156479,1795.3,1795.1,8.68585771]
[1743353882892,6.50345479,1795.2,1795.1,3.21615771]
[1743353883091,10.74595479,1795.2,1795.1,3.21615771]
[1743353883285,10.74595479,1795.2,1795.1,0.00835771]
[1743353883490,9.63156479,1795.2,1795.1,0.00835771]
[1743353883793,10.74595479,1795.2,1795.1,0.00835771]
[1743353883994,9.63156479,1795.2,1795.1,0.00835771]
[1743353884393,10.74595479,1795.2,1795.1,0.00835771]
[1743353884892,1e-08,1795.4,1795.2,1.11434]
[1743353885190,5.38906479,1795.3,1795.2,4.2854]
[1743353885390,9.7263648,1795.4,1795.2,4.2854]
[1743353885590,9.7263648,1795.4,1795.2,5.39976]
[1743353885790,6.50339479,1795.3,1795.1,3.21615771]
[1743353885990,10.84069479,1795.3,1795.1,3.21615771]
[1743353886199,1e-08,1795.4,1795.1,4.33055771]
[1743353886393,6.5033648,1795.4,1795.1,8.61595771]
[1743353886598,4.3373,1795.3,1795.2,1.11437]
[1743353886790,4.3373,1795.3,1795.2,5.39977]
[1743353886991,1.11439,1795.2,1795.1,0.00835771]
[1743353887187,6.50345479,1795.2,1795.1,0.00835771]
[1743353887392,10.84075479,1795.2,1795.1,0.00835771]
[1743353887588,1.11464,1794.8,1794.7,3.7654]
[1743353887794,1.11462,1794.9,1794.7,3.7654]
[1743353887994,4.4362,1794.8,1794.7,3.7654]
[1743353888803,1.11453,1795.0,1794.8,1.11462]
[1743353889098,9.82526479,1794.9,1794.7,8.57865]
[1743353889501,9.82526479,1794.9,1794.8,1.11464]
[1743353889701,9.82526479,1794.9,1794.7,8.57866]
[1743353890001,10.93989479,1794.9,1794.7,7.464]
[1743353890400,1.11464,1794.8,1794.7,7.464]
[1743353890711,1.1147,1794.7,1794.6,0.00835771]
[1743353891000,6.50376479,1794.7,1794.6,0.00835771]
[1743353891198,1.11478,1794.6,1794.4,51.476]
[1743353891399,9.50586479,1794.6,1794.4,53.14845]
[1743353891599,9.50586479,1794.6,1794.5,4.451]
[1743353891796,10.62062479,1794.6,1794.5,4.451]
[1743353892099,9.50586479,1794.6,1794.3,3.2078]
[1743353892301,5.38906479,1794.5,1794.4,0.00835771]
[1743353892500,9.50586479,1794.5,1794.4,1.12324771]
[1743353892702,9.50586479,1794.5,1794.4,5.57424771]
[1743353893003,10.62068479,1794.5,1794.4,0.00835771]
[1743353895400,9.50586479,1794.5,1794.4,1.12324771]
[1743353895598,3.20780001,1795.4,1795.1,1.11442]
[1743353895802,9.48566479,1795.3,1795.1,1.11442]
[1743353896098,10.60001479,1795.3,1795.1,3.2078]
[1743353896303,5.38906479,1795.2,1795.1,3.2078]
[1743353896502,1e-08,1795.4,1795.3,1.11433]
[1743353896705,1e-08,1795.4,1795.3,9.42613]
[1743353897505,1e-08,1795.4,1795.3,8.3118]
[1743353897799,1e-08,1795.4,1795.3,1.11433]
[1743353898006,1e-08,1795.4,1795.3,4.32213]
[1743353899613,1e-08,1795.4,1795.3,14.19263609]
[1743353899810,1e-08,1795.4,1795.3,24.61526421]
[1743353901201,5.57811,1796.5,1796.1,1.11379]
[1743353901399,5.38906479,1796.5,1796.4,4.32144]
[1743353901602,5.38906479,1796.5,1796.4,3.7646]
[1743353901803,1.11358,1796.5,1796.2,10.9453738]
[1743353902004,5.38906479,1796.4,1796.2,3.2078]
[1743353902314,5.38906479,1796.8,1796.2,3.7646]
[1743353902511,0.00835771,1796.5,1796.3,4.3348]
[1743353902810,0.00835771,1796.5,1796.4,1.11364]
[1743353903013,0.00835771,1796.5,1796.4,4.32144]
[1743353903614,5.3974225,1796.5,1796.4,8.3008]
[1743353903805,0.00835771,1796.5,1796.4,13.48034]
[1743353905317,0.00835771,1796.5,1796.4,20.77316579]
[1743353905915,1.11338,1796.9,1796.5,1.11356]
[1743353906112,8.59686479,1797.0,1796.5,5.08]
[1743353906305,1.11343,1796.8,1796.5,5.08]
[1743353906501,5.38906479,1796.9,1796.4,3.2078]
[1743353906707,1.11352,1796.6,1796.5,3.2078]
[1743353907014,0.00835771,1796.7,1796.5,3.2078]
[1743353907204,5.38906479,1796.6,1796.5,3.2078]
[1743353907514,6.50258479,1796.6,1796.5,3.2078]
[1743353907714,5.38906479,1796.6,1796.5,3.2078]
[1743353907914,6.50258479,1796.6,1796.5,3.2078]
[1743353908116,1.11358,1796.5,1796.3,54.6718]
[1743353908315,6.50268479,1796.5,1796.3,54.6718]
[1743353908514,6.50270479,1796.4,1796.3,54.6718]
[1743353908713,6.50262479,1796.6,1796.3,54.6718]
[1743353908908,6.50263479,1796.6,1796.3,54.6718]
[1743353909115,6.50265479,1796.5,1796.3,54.6718]
[1743353909315,5.38906479,1796.6,1796.3,54.6718]
[1743353909512,6.50262479,1796.6,1796.3,55.7855]
[1743353909714,5.38906479,1796.5,1796.4,1.11364]
[1743353909910,5.38906479,1796.6,1796.5,1.11358]
[1743353910108,0.00835771,1796.7,1796.6,1.11352]
[1743353910616,5.3974225,1796.7,1796.6,5.47462]
[1743353911112,0.00835771,1796.7,1796.6,5.47462]
[1743353911315,7.5063,1797.1,1797.0,1.11327]
[1743353911514,14.00860479,1797.1,1796.9,1.11329]
[1743353911814,5.38906479,1797.0,1796.9,1.11329]
[1743353912317,5.38906479,1797.0,1796.9,6.14329]
[1743353912505,5.38906479,1797.0,1796.9,9.35109]
[1743353912704,5.38906479,1797.0,1796.6,1.11349]
[1743353912907,5.38906479,1796.9,1796.7,1.11343]
[1743353913315,5.38906479,1796.8,1796.7,4.32123]
[1743353913518,6.50241479,1796.9,1796.7,3.2078]
[1743353913714,5.38906479,1797.1,1796.7,1.11345]
[1743353913914,5.38906479,1797.1,1796.6,13.70009]
[1743353914209,5.38906479,1797.1,1796.3,51.464]
[1743353914210,1.11343,1796.8,1796.5,6.13754]
[1743353914516,1.11342,1796.8,1796.6,1.11348]
[1743353914718,6.50253479,1796.7,1796.5,6.13755]
[1743353914902,5.38906479,1797.0,1796.6,3.2078]
[1743353915108,1.11344,1796.8,1796.6,4.32131]
[1743353915512,1.11377,1796.2,1795.9,0.5568]
[1743353915817,1.11392,1796.0,1795.8,1.67081]
[1743353916010,8.58850708,1796.5,1796.4,1.11364]
[1743353916206,5.38070708,1796.8,1796.7,1.11346]
[1743353916506,13.5932,1797.3,1796.6,3.2078]
[1743353916709,1.11341,1796.8,1796.6,8.2698]
[1743353916913,1.11341,1796.8,1796.6,9.38332]
[1743353917223,9.57150708,1796.7,1796.5,6.17691771]
[1743353917716,5.38070708,1796.6,1796.5,6.17691771]
[1743353917910,9.57150708,1796.6,1796.5,0.00835771]
[1743353918916,10.68502708,1796.6,1796.5,0.00835771]
[1743353920911,12.07150708,1796.6,1796.1,51.44]
[1743353921214,10.76900708,1796.5,1796.0,8.2188]
[1743353921516,1.11366,1796.4,1796.2,3.2078]
[1743353921719,4.1473,1796.3,1796.2,3.2078]
[1743353922014,9.52800708,1796.3,1796.2,4.32157]
[1743353922214,9.52800708,1796.3,1796.2,8.49147]
[1743353922918,3.2078,1796.7,1796.2,7.3777]
[1743353923116,4.1473,1796.5,1796.4,4.32141]
[1743353923621,9.52800708,1796.5,1796.4,3.2078]
[1743353923812,9.52800708,1796.5,1796.4,4.32144]
[1743353924014,4.1473,1796.5,1796.4,4.32144]
[1743353925327,4.1473,1796.5,1796.4,9.28244]
[1743353925622,9.52800708,1796.5,1796.2,7.3777]
[1743353925919,5.38070708,1796.4,1796.3,1.11368]
[1743353926116,9.49700708,1796.4,1796.3,1.11368]
[1743353926315,9.49700708,1796.4,1796.2,13.44642]
[1743353926525,5.38070708,1796.3,1796.2,13.44642]
[1743353926724,9.49700708,1796.3,1796.2,13.44642]
[1743353926926,4.1163,1796.3,1796.2,13.44642]
[1743353927117,9.49700708,1796.3,1796.2,13.44642]
[1743353927520,9.49700708,1796.3,1796.2,12.3327]
[1743353927718,9.49700708,1796.3,1796.2,4.955]
[1743353927924,10.61071708,1796.3,1796.1,4.94235771]
[1743353928126,5.38070708,1796.2,1796.1,6.05616771]
[1743353928328,9.59470708,1796.2,1796.1,6.05616771]
[1743353930524,1.11352,1796.7,1796.1,4.94235771]
[1743353930720,10.69533708,1796.6,1796.3,3.2078]
[1743353930915,4.2011,1796.6,1796.3,3.2078]
[1743353931122,5.38070708,1796.5,1796.4,5.47794]
[1743353931516,9.58180708,1796.5,1796.4,1.11364]
[1743353931921,9.58180708,1796.5,1796.3,4.32146]
[1743353932416,9.58180708,1796.5,1796.4,1.11364]
[1743353932623,4.2011,1796.5,1796.3,3.2078]
[1743353932919,2.7843,1796.3,1795.8,0.5568]
[1743353933115,1.11374,1796.3,1795.9,3.7646]
[1743353933319,9.60410708,1796.2,1795.9,10.91833339]
[1743353933630,1.11388,1796.1,1795.9,3.2078]
[1743353933825,4.2234,1796.0,1795.7,3.7646]
[1743353934031,10.72639479,1796.0,1795.7,9.23520771]
[1743353934222,6.49467708,1795.9,1795.7,9.23520771]
[1743353934422,0.00835771,1796.0,1795.8,6.86161162]
[1743353934730,0.00835771,1796.0,1795.9,8.58725]
[1743353935425,0.00835771,1796.0,1795.9,15.96756528]
[1743353935628,1.11365,1796.4,1796.2,1.11373]
[1743353935939,1.11372,1796.3,1796.1,6.01679]
[1743353936229,5.33712,1796.3,1796.1,6.01679]
[1743353936419,5.38070708,1796.2,1796.1,10.37149]
[1743353936731,1.11383,1796.1,1796.0,3.2078]
[1743353936922,10.77653708,1796.1,1796.0,3.2078]
[1743353937123,9.66270708,1796.1,1796.0,3.7646]
[1743353937326,0.00835771,1796.3,1796.0,3.2078]
[1743353937533,0.00835771,1796.3,1796.2,4.32157]
[1743353939733,0.00835771,1796.3,1796.2,9.18857]
[1743353947027,0.00835771,1796.3,1796.2,16.52670171]
[1743353947428,0.00835771,1796.3,1796.2,19.02670171]
[1743353947734,12.70651008,1796.5,1796.4,1.11364]
[1743353947927,5.48707374,1796.5,1796.4,4.32144]
[1743353948128,7.16746536,1796.6,1796.5,1.11358]
[1743353948337,4.24736536,1796.6,1796.5,5.90058]
[1743353948635,1.463525,1796.6,1796.5,54.08812145]
[1743353948836,35.45172621,1796.8,1796.7,1.11346]
[1743353949036,35.45172621,1796.8,1796.7,4.32126]
[1743353949236,35.45172621,1796.8,1796.7,11.72149324]
[1743353950032,35.45172621,1796.8,1796.7,9.08926]
[1743353950239,44.95743329,1796.8,1796.7,9.08926]
[1743353950631,9.50570708,1796.8,1796.7,7.9758]
[1743353950831,9.50570708,1796.8,1796.7,9.08926]
[1743353952028,4.125,1796.8,1796.7,9.08926]
[1743353952331,0.00835771,1796.9,1796.8,1.1134]
[1743353952534,0.00835771,1796.9,1796.8,5.6104]
[1743353952834,5.38906479,1796.9,1796.8,1.1134]
[1743353955037,0.00835771,1796.9,1796.8,5.6595]
[1743353956138,0.00835771,1796.9,1796.8,6.2163]
[1743353956440,5.38906479,1796.9,1796.8,6.2163]
[1743353956642,5.38906479,1796.9,1796.8,1.6702]
[1743353957343,5.38906479,1796.9,1796.8,6.3682]
[1743353957544,5.38906479,1796.9,1796.8,1.6702]
[1743353957746,5.38906479,1796.9,1796.8,6.3652]
[1743353959146,5.38906479,1796.9,1796.8,0.5568]
[1743353959345,5.38906479,1796.9,1796.7,3.77295771]
[1743353959647,14.95210708,1796.8,1796.7,3.77295771]
[1743353959947,13.83870708,1796.8,1796.7,3.77295771]
[1743353960146,14.95210708,1796.8,1796.7,3.21615771]
[1743353960446,14.95210708,1796.8,1796.6,5.2358]
[1743353960447,14.95210708,1796.8,1796.6,7.8868]
[1743353960744,5.38070708,1796.7,1796.6,7.8868]
[1743353960946,9.58540708,1796.7,1796.6,7.8868]
[1743353961143,9.58540708,1796.7,1796.6,9.00032]
[1743353961548,9.58540708,1796.7,1796.6,7.8868]
[1743353961746,9.58540708,1796.7,1796.5,0.56515771]
[1743353961946,5.38070708,1796.6,1796.5,0.56515771]
[1743353962148,9.58540708,1796.6,1796.5,0.56515771]
[1743353962846,9.58540708,1796.6,1796.5,1.67873771]
[1743353964347,9.58540708,1796.6,1796.5,0.56515771]
[1743353964544,10.69892708,1796.6,1796.5,0.56515771]
[1743353964740,1.11358,1796.5,1796.4,5.1848]
[1743353965044,11.02481708,1796.5,1796.4,0.5568]
[1743353965348,11.02481708,1796.5,1796.3,51.9948]
[1743353965550,5.38070708,1796.4,1796.3,51.9948]
[1743353965748,9.91120708,1796.4,1796.3,53.10851]
[1743353965951,9.91120708,1796.4,1796.3,51.9948]
[1743353967646,1.11371,1796.3,1796.0,1.11388]
[1743353967837,8.7287,1796.2,1796.0,1.11387]
[1743353968037,18.63910708,1796.2,1796.0,0.5568]
[1743353968241,6.49453708,1796.1,1795.9,4.32174]
[1743353968447,6.49453708,1796.1,1795.9,7.8108]
[1743353968649,5.38070708,1796.0,1795.9,7.8108]
[1743353968945,5.38070708,1796.0,1795.9,3.2078]
[1743353969150,5.38070708,1796.0,1795.9,4.87935]
[1743353969650,8.8802,1796.2,1796.0,1.11386]
[1743353969846,5.38070708,1796.1,1795.9,4.87932]
[1743353970244,5.38070708,1796.0,1795.9,4.87932]
[1743353970440,5.38070708,1796.0,1795.9,1.67152]
[1743353970945,8.8802,1796.2,1795.9,8.3713]
[1743353971144,14.26090708,1796.2,1796.0,1.11384]